fUST/lending_fUST_20250521
["ID","MTS","AMOUNT","RATE_DAILY","PERIOD"]
[361782606,1747776636286,-422.65292303,0.00017528,2]
[361782607,1747776636296,-160.0,0.00017528,2]
[361782608,1747776636307,-500.0,0.00017533,2]
[361782609,1747776636316,-500.0,0.00017533,2]
[361782610,1747776636327,-500.0,0.00017533,2]
[361782611,1747776636336,-500.0,0.00017533,2]
[361782612,1747776636346,-500.0,0.00017533,2]
[361782613,1747776636356,-500.0,0.00017533,2]
[361782614,1747776636365,-500.0,0.00017533,2]
[361782615,1747776636375,-259.28432959,0.00017533,2]
[361782616,1747776636384,-217.58598301,0.00017533,2]
[361782617,1747776636394,-500.0,0.00017533,2]
[361782618,1747776636404,-500.0,0.00017533,2]
[361782619,1747776636414,-500.0,0.00017533,2]
[361782620,1747776636426,-578.97301155,0.00017533,2]
[361782621,1747776636436,-500.0,0.00017533,2]
[361782622,1747776636446,-500.0,0.00017533,2]
[361782623,1747776636456,-390.98843352,0.00017533,2]
[361782624,1747776636466,-500.0,0.00017533,2]
[361782625,1747776636476,-500.0,0.00017533,2]
[361782626,1747776636485,-500.0,0.00017533,2]
[361782627,1747776636495,-500.0,0.00017533,2]
[361782628,1747776636505,-500.0,0.00017533,2]
[361782629,1747776636515,-500.0,0.00017533,2]
[361782630,1747776636524,-500.0,0.00017533,2]
[361782631,1747776636534,-258.07280721,0.00017533,2]
[361782632,1747776636543,-500.0,0.00017533,2]
[361782633,1747776636553,-500.0,0.00017533,2]
[361782634,1747776636563,-430.0,0.00017534,2]
[361782635,1747776636573,-209.81,0.00017534,2]
[361782636,1747776636583,-430.0,0.00017534,2]
[361782637,1747776636596,-430.0,0.00017534,2]
[361782638,1747776636605,-845.26,0.00017534,2]
[361782639,1747776636615,-205.23068023,0.00017534,2]
[361782640,1747776636625,-1270.68,0.00017534,2]
[361782641,1747776636634,-430.0,0.00017534,2]
[361782642,1747776636644,-2639.7,0.00017534,2]
[361782643,1747776636654,-430.0,0.00017534,2]
[361782644,1747776636663,-430.0,0.00017534,2]
[361782645,1747776636675,-611.58,0.00017534,2]
[361782646,1747776636684,-444.59,0.00017534,2]
[361782647,1747776636694,-661.79,0.00017534,2]
[361782648,1747776636703,-430.0,0.00017534,2]
[361782649,1747776636714,-430.0,0.00017534,2]
[361782650,1747776636724,-430.0,0.00017534,2]
[361782651,1747776636733,-430.0,0.00017534,2]
[361782652,1747776636744,-430.0,0.00017534,2]
[361782653,1747776636755,-430.0,0.00017534,2]
[361782654,1747776636765,-430.0,0.00017534,2]
[361782655,1747776636774,-430.0,0.00017534,2]
[361782656,1747776636783,-430.0,0.00017534,2]
[361782657,1747776636793,-836.48,0.00017534,2]
[361782658,1747776636802,-430.0,0.00017534,2]
[361782659,1747776636812,-430.0,0.00017534,2]
[361782660,1747776636822,-442.6,0.00017534,2]
[361782661,1747776636834,-430.0,0.00017534,2]
[361782662,1747776636844,-430.0,0.00017534,2]
[361782663,1747776636854,-1901.72,0.00017534,2]
[361782664,1747776636863,-1593.13,0.00017534,2]
[361782665,1747776636873,-756.07,0.00017534,2]
[361782666,1747776636882,-430.0,0.00017534,2]
[361782667,1747776636892,-486.77,0.00017534,2]
[361782668,1747776636902,-430.0,0.00017534,2]
[361782669,1747776636912,-430.0,0.00017534,2]
[361782670,1747776636924,-430.0,0.00017534,2]
[361782671,1747776636934,-779.03,0.00017534,2]
[361782672,1747776636943,-430.0,0.00017534,2]
[361782673,1747776636953,-430.0,0.00017534,2]
[361782674,1747776636962,-3482.81,0.00017534,2]
[361782675,1747776636971,-246.88492509,0.00017606,2]
[361782676,1747776636981,-430.0,0.00017808,2]
[361782677,1747776636991,-430.0,0.00017808,2]
[361782678,1747776637000,-430.0,0.00017808,2]
[361782679,1747776637009,-845.26,0.00017808,2]
[361782680,1747776637018,-1270.68,0.00017808,2]
[361782681,1747776637027,-469.36025233,0.00017808,2]
[361782682,1747776637037,-2639.7,0.00017808,2]
[361782683,1747776637046,-430.0,0.00017808,2]
[361782684,1747776637056,-430.0,0.00017808,2]
[361782685,1747776637066,-611.58,0.00017808,2]
[361782686,1747776637076,-444.59,0.00017808,2]
[361782687,1747776637085,-661.79,0.00017808,2]
[361782688,1747776637094,-430.0,0.00017808,2]
[361782689,1747776637103,-430.0,0.00017808,2]
[361782690,1747776637112,-430.0,0.00017808,2]
[361782691,1747776637122,-430.0,0.00017808,2]
[361782692,1747776637131,-430.0,0.00017808,2]
[361782693,1747776637140,-430.0,0.00017808,2]
[361782694,1747776637151,-203.84026358,0.00017808,2]
[361782695,1747776637160,-177.29540481,0.00017808,2]
[361782696,1747776637170,-430.0,0.00017808,2]
[361782697,1747776637179,-836.48,0.00017808,2]
[361782698,1747776637189,-430.0,0.00017808,2]
[361782699,1747776637198,-388.32,0.00017808,2]
[361782700,1747776637207,-442.6,0.00017808,2]
[361782701,1747776637217,-259.46,0.00017808,2]
[361782702,1747776637226,-430.0,0.00017808,2]
[361782703,1747776637235,-1901.72,0.00017808,2]
[361782704,1747776637244,-1593.13,0.00017808,2]
[361782705,1747776637254,-756.07,0.00017808,2]
[361782706,1747776637263,-352.22239669,0.00017808,2]
[361782707,1747776637272,-486.77,0.00017808,2]
[361782708,1747776637282,-430.0,0.00017808,2]
[361782709,1747776637292,-430.0,0.00017808,2]
[361782710,1747776637301,-430.0,0.00017808,2]
[361782711,1747776637310,-779.03,0.00017808,2]
[361782712,1747776637320,-430.0,0.00017808,2]
[361782713,1747776637330,-430.0,0.00017808,2]
[361782714,1747776637339,-5033.35766491,0.000179,2]
[361782715,1747776637348,-1000.0,0.0001792,2]
[361782716,1747776637358,-500.0,0.00017922,2]
[361782717,1747776637367,-1000.0,0.00017922,2]
[361782718,1747776637376,-1000.0,0.00017922,2]
[361782719,1747776637386,-510.04555753,0.00017936,2]
[361782720,1747776637396,-420.0,0.00017963,2]
[361782721,1747776637405,-1000.0,0.00017971,2]
[361782722,1747776637415,-1000.0,0.00017971,2]
[361782723,1747776637429,-1000.0,0.00017971,2]
[361782724,1747776637439,-1000.0,0.00017971,2]
[361782725,1747776637448,-1000.0,0.00017977,2]
[361782726,1747776637458,-1000.0,0.00017977,2]
[361782727,1747776637468,-1000.0,0.00017977,2]
[361782728,1747776637478,-1000.0,0.00017977,2]
[361782729,1747776637487,-1004.62142472,0.00017992,2]
[361782730,1747776637497,-1000.0,0.00017992,2]
[361782731,1747776637506,-500.0,0.00018003,2]
[361782732,1747776637516,-430.0,0.00018082,2]
[361782733,1747776637525,-430.0,0.00018082,2]
[361782734,1747776637534,-430.0,0.00018082,2]
[361782735,1747776637544,-845.26,0.00018082,2]
[361782736,1747776637553,-1270.68,0.00018082,2]
[361782737,1747776637563,-2639.7,0.00018082,2]
[361782738,1747776637573,-263.11527675,0.00018082,2]
[361782739,1747776637582,-430.0,0.00018082,2]
[361782740,1747776637592,-611.58,0.00018082,2]
[361782741,1747776637605,-444.59,0.00018082,2]
[361782742,1747776637614,-661.79,0.00018082,2]
[361782743,1747776637624,-430.0,0.00018082,2]
[361782744,1747776637633,-560.38797362,0.00018082,2]
[361782745,1747776637642,-430.0,0.00018082,2]
[361782746,1747776637651,-430.0,0.00018082,2]
[361782747,1747776637661,-430.0,0.00018082,2]
[361782748,1747776637671,-430.0,0.00018082,2]
[361782749,1747776637682,-430.0,0.00018082,2]
[361782750,1747776637692,-836.48,0.00018082,2]
[361782751,1747776637702,-246.2623621,0.00018082,2]
[361782752,1747776637711,-442.6,0.00018082,2]
[361782753,1747776637721,-430.0,0.00018082,2]
[361782754,1747776637731,-1901.72,0.00018082,2]
[361782755,1747776637739,-1593.13,0.00018082,2]
[361782756,1747776637749,-756.07,0.00018082,2]
[361782757,1747776637758,-486.77,0.00018082,2]
[361782758,1747776637768,-430.0,0.00018082,2]
[361782759,1747776637777,-430.0,0.00018082,2]
[361782761,1747776637787,-283.4618019,0.00018082,2]
[361782762,1747776637796,-779.03,0.00018082,2]
[361782763,1747776637805,-510.96,0.00018082,2]
[361782764,1747776637815,-430.0,0.00018082,2]
[361782765,1747776637824,-5033.35766472,0.00018176,2]
[361782766,1747776637833,-182.6,0.00018356,2]
[361782767,1747776637843,-430.0,0.00018356,2]
[361782768,1747776637852,-430.0,0.00018356,2]
[361782770,1747776637862,-845.26,0.00018356,2]
[361782771,1747776637872,-1270.68,0.00018356,2]
[361782772,1747776637881,-2639.7,0.00018356,2]
[361782773,1747776637890,-430.0,0.00018356,2]
[361782774,1747776637900,-611.58,0.00018356,2]
[361782776,1747776637909,-444.59,0.00018356,2]
[361782777,1747776637918,-661.79,0.00018356,2]
[361782778,1747776637929,-430.0,0.00018356,2]
[361782779,1747776637938,-430.0,0.00018356,2]
[361782780,1747776637947,-430.0,0.00018356,2]
[361782781,1747776637957,-430.0,0.00018356,2]
[361782782,1747776637966,-430.0,0.00018356,2]
[361782783,1747776637975,-173.25570811,0.00018356,2]
[361782784,1747776637985,-836.48,0.00018356,2]
[361782785,1747776637995,-442.6,0.00018356,2]
[361782786,1747776638005,-430.0,0.00018356,2]
[361782787,1747776638014,-220.25121926,0.00018356,2]
[361782788,1747776638032,-1681.46878074,0.00018356,2]
[361782789,1747776638042,-1593.13,0.00018356,2]
[361782790,1747776638052,-756.07,0.00018356,2]
[361782791,1747776638062,-486.77,0.00018356,2]
[361782792,1747776638072,-430.0,0.00018356,2]
[361782793,1747776638081,-430.0,0.00018356,2]
[361782794,1747776638091,-779.03,0.00018356,2]
[361782795,1747776638101,-430.0,0.00018356,2]
[361782796,1747776638112,-251.8,0.000184,2]
[361782797,1747776638122,-5033.35766472,0.00018452,2]
[361782798,1747776638131,-1500.0,0.00018468,2]
[361782799,1747776638141,-1500.0,0.0001847,2]
[361782800,1747776638151,-1500.0,0.0001847,2]
[361782801,1747776638161,-1500.0,0.00018519,2]
[361782802,1747776638171,-1500.0,0.00018519,2]
[361782803,1747776638180,-1500.0,0.00018519,2]
[361782804,1747776638190,-1500.0,0.00018519,2]
[361782805,1747776638199,-790.36933139,0.00018525,2]
[361782806,1747776638209,-1500.0,0.00018525,2]
[361782807,1747776638219,-1500.0,0.00018525,2]
[361782808,1747776638229,-1500.0,0.00018525,2]
[361782809,1747776638238,-1500.0,0.0001854,2]
[361782810,1747776638248,-424.34,0.0001863,2]
[361782811,1747776638257,-430.0,0.0001863,2]
[361782812,1747776638266,-845.26,0.0001863,2]
[361782813,1747776638276,-1270.68,0.0001863,2]
[361782814,1747776638285,-2639.7,0.0001863,2]
[361782815,1747776638295,-510.41383871,0.0001863,2]
[361782817,1747776638305,-611.58,0.0001863,2]
[361782819,1747776638315,-444.59,0.0001863,2]
[361782820,1747776638325,-661.79,0.0001863,2]
[361782822,1747776638336,-430.0,0.0001863,2]
[361782823,1747776638346,-153.52,0.0001863,2]
[361782824,1747776638357,-430.0,0.0001863,2]
[361782825,1747776638367,-430.0,0.0001863,2]
[361782827,1747776638377,-430.0,0.0001863,2]
[361782829,1747776638386,-836.48,0.0001863,2]
[361782830,1747776638396,-442.6,0.0001863,2]
[361782831,1747776638406,-430.0,0.0001863,2]
[361782832,1747776638416,-1901.72,0.0001863,2]
[361782833,1747776638428,-1593.13,0.0001863,2]
[361782834,1747776638438,-756.07,0.0001863,2]
[361782835,1747776638447,-486.77,0.0001863,2]
[361782837,1747776638457,-430.0,0.0001863,2]
[361782839,1747776638467,-430.0,0.0001863,2]
[361782841,1747776638476,-779.03,0.0001863,2]
[361782843,1747776638486,-430.0,0.0001863,2]
[361782844,1747776638496,-5033.35766472,0.00018728,2]
[361782845,1747776638506,-355.3014593,0.000189,2]
[361782846,1747776638516,-430.0,0.00018904,2]
[361782847,1747776638526,-845.26,0.00018904,2]
[361782848,1747776638536,-1270.68,0.00018904,2]
[361782849,1747776638546,-2639.7,0.00018904,2]
[361782850,1747776638556,-611.58,0.00018904,2]
[361782851,1747776638566,-444.59,0.00018904,2]
[361782852,1747776638575,-661.79,0.00018904,2]
[361782853,1747776638585,-430.0,0.00018904,2]
[361782854,1747776638598,-430.0,0.00018904,2]
[361782855,1747776638608,-430.0,0.00018904,2]
[361782856,1747776638618,-430.0,0.00018904,2]
[361782857,1747776638628,-836.48,0.00018904,2]
[361782858,1747776638638,-442.6,0.00018904,2]
[361782859,1747776638648,-483.24,0.00018904,2]
[361782860,1747776638657,-1901.72,0.00018904,2]
[361782861,1747776638668,-1593.13,0.00018904,2]
[361782862,1747776638681,-756.07,0.00018904,2]
[361782863,1747776638690,-486.77,0.00018904,2]
[361782864,1747776638700,-430.0,0.00018904,2]
[361782865,1747776638710,-430.0,0.00018904,2]
[361782866,1747776638720,-779.03,0.00018904,2]
[361782867,1747776638729,-319.07477437,0.00018904,2]
[361782868,1747776638740,-500.0,0.0001895,2]
[361782869,1747776638750,-5033.35766472,0.00019003,2]
[361782870,1747776638760,-355.94181766,0.00019016,2]
[361782871,1747776638770,-2000.0,0.00019018,2]
[361782872,1747776638781,-2000.0,0.00019018,2]
[361782873,1747776638790,-1000.02275469,0.00019067,2]
[361782874,1747776638800,-2000.0,0.00019067,2]
[361782875,1747776638810,-2000.0,0.00019067,2]
[361782876,1747776638820,-2000.0,0.00019067,2]
[361782877,1747776638830,-2000.0,0.00019073,2]
[361782878,1747776638839,-2000.0,0.00019073,2]
[361782879,1747776638850,-2000.0,0.00019088,2]
[361782882,1747776639003,-319.01704118,0.00019178,2]
[361782884,1747776639013,-845.26,0.00019178,2]
[361782885,1747776639024,-1270.68,0.00019178,2]
[361782886,1747776639034,-2639.7,0.00019178,2]
[361782887,1747776639044,-611.58,0.00019178,2]
[361782888,1747776639054,-444.59,0.00019178,2]
[361782889,1747776639063,-661.79,0.00019178,2]
[361782890,1747776639073,-430.0,0.00019178,2]
[361782891,1747776639083,-430.0,0.00019178,2]
[361782892,1747776639093,-430.0,0.00019178,2]
[361782893,1747776639103,-430.0,0.00019178,2]
[361782894,1747776639112,-836.48,0.00019178,2]
[361782895,1747776639122,-442.6,0.00019178,2]
[361782896,1747776639132,-1901.72,0.00019178,2]
[361782897,1747776639141,-1593.13,0.00019178,2]
[361782898,1747776639151,-756.07,0.00019178,2]
[361782899,1747776639161,-486.77,0.00019178,2]
[361782900,1747776639170,-430.0,0.00019178,2]
[361782901,1747776639181,-430.0,0.00019178,2]
[361782902,1747776639191,-779.03,0.00019178,2]
[361782903,1747776639201,-182.2109,0.00019178,2]
[361782904,1747776639213,-5033.35766472,0.00019279,2]
[361782905,1747776639222,-845.26,0.00019452,2]
[361782906,1747776639232,-1270.68,0.00019452,2]
[361782907,1747776639247,-2639.7,0.00019452,2]
[361782908,1747776639257,-611.58,0.00019452,2]
[361782909,1747776639270,-444.59,0.00019452,2]
[361782910,1747776639280,-661.79,0.00019452,2]
[361782911,1747776639290,-227.94,0.00019452,2]
[361782912,1747776639300,-430.0,0.00019452,2]
[361782913,1747776639309,-441.81890607,0.00019452,2]
[361782914,1747776639320,-430.0,0.00019452,2]
[361782915,1747776639329,-836.48,0.00019452,2]
[361782916,1747776639340,-442.6,0.00019452,2]
[361782917,1747776639352,-1901.72,0.00019452,2]
[361782918,1747776639363,-1593.13,0.00019452,2]
[361782919,1747776639373,-756.07,0.00019452,2]
[361782920,1747776639385,-486.77,0.00019452,2]
[361782921,1747776639401,-430.0,0.00019452,2]
[361782922,1747776639411,-430.0,0.00019452,2]
[361782923,1747776639421,-779.03,0.00019452,2]
[361782924,1747776639431,-5033.35766472,0.00019555,2]
[361782925,1747776639441,-587.0,0.00019631,2]
[361782926,1747776639451,-845.26,0.00019726,2]
[361782927,1747776639461,-1270.68,0.00019726,2]
[361782928,1747776639471,-2639.7,0.00019726,2]
[361782929,1747776639481,-611.58,0.00019726,2]
[361782930,1747776639490,-444.59,0.00019726,2]
[361782931,1747776639500,-661.79,0.00019726,2]
[361782932,1747776639510,-430.0,0.00019726,2]
[361782933,1747776639519,-430.0,0.00019726,2]
[361782934,1747776639529,-836.48,0.00019726,2]
[361782935,1747776639538,-442.6,0.00019726,2]
[361782936,1747776639548,-1901.72,0.00019726,2]
[361782937,1747776639557,-1593.13,0.00019726,2]
[361782938,1747776639566,-756.07,0.00019726,2]
[361782939,1747776639576,-486.77,0.00019726,2]
[361782940,1747776639586,-430.0,0.00019726,2]
[361782941,1747776639597,-430.0,0.00019726,2]
[361782942,1747776639608,-779.03,0.00019726,2]
[361782943,1747776639618,-5033.35766472,0.00019831,2]
[361782944,1747776639627,-500.0,0.00019898,2]
[361782945,1747776639637,-845.26,0.0002,2]
[361782946,1747776639647,-1270.68,0.0002,2]
[361782947,1747776639657,-2639.7,0.0002,2]
[361782948,1747776639666,-611.58,0.0002,2]
[361782949,1747776639677,-444.59,0.0002,2]
[361782950,1747776639686,-661.79,0.0002,2]
[361782951,1747776639696,-430.0,0.0002,2]
[361782952,1747776639706,-430.0,0.0002,2]
[361782953,1747776639716,-836.48,0.0002,2]
[361782954,1747776639725,-442.6,0.0002,2]
[361782955,1747776639734,-1901.72,0.0002,2]
[361782956,1747776639744,-1593.13,0.0002,2]
[361782957,1747776639754,-756.07,0.0002,2]
[361782958,1747776639763,-486.77,0.0002,2]
[361782959,1747776639772,-430.0,0.0002,2]
[361782960,1747776639782,-430.0,0.0002,2]
[361782962,1747776639791,-779.03,0.0002,2]
[361782963,1747776639801,-5000.0,0.00020026,2]
[361782964,1747776639811,-5033.35766472,0.00020107,2]
[361782966,1747776639820,-207.4,0.00020142,2]
[361782967,1747776639830,-151.0,0.00020142,2]
[361782968,1747776639840,-231.868955,0.00020187,2]
[361782969,1747776639850,-845.26,0.00020273,2]
[361782970,1747776639859,-1270.68,0.00020273,2]
[361782971,1747776639869,-2639.7,0.00020273,2]
[361782972,1747776639878,-611.58,0.00020273,2]
[361782973,1747776639888,-444.59,0.00020273,2]
[361782974,1747776639897,-661.79,0.00020273,2]
[361782975,1747776639907,-430.0,0.00020273,2]
[361782976,1747776639917,-430.0,0.00020273,2]
[361782978,1747776639927,-836.48,0.00020273,2]
[361782980,1747776639936,-442.6,0.00020273,2]
[361782981,1747776639946,-1901.72,0.00020273,2]
[361782982,1747776639955,-1593.13,0.00020273,2]
[361782983,1747776639965,-756.07,0.00020273,2]
[361782984,1747776639974,-486.77,0.00020273,2]
[361782985,1747776639984,-430.0,0.00020273,2]
[361782986,1747776639994,-430.0,0.00020273,2]
[361782988,1747776640003,-779.03,0.00020273,2]
[361782989,1747776640012,-5033.35766472,0.00020383,3]
[361782990,1747776640022,-845.26,0.00020547,2]
[361782991,1747776640031,-1270.68,0.00020547,2]
[361782992,1747776640041,-2639.7,0.00020547,2]
[361782993,1747776640051,-611.58,0.00020547,2]
[361782994,1747776640060,-444.59,0.00020547,2]
[361782995,1747776640070,-661.79,0.00020547,2]
[361782996,1747776640079,-430.0,0.00020547,2]
[361782997,1747776640088,-430.0,0.00020547,2]
[361782998,1747776640098,-836.48,0.00020547,2]
[361782999,1747776640107,-442.6,0.00020547,2]
[361783000,1747776640117,-1901.72,0.00020547,2]
[361783002,1747776640126,-1593.13,0.00020547,2]
[361783003,1747776640136,-756.07,0.00020547,2]
[361783004,1747776640146,-486.77,0.00020547,2]
[361783005,1747776640155,-430.0,0.00020547,2]
[361783006,1747776640165,-430.0,0.00020547,2]
[361783007,1747776640175,-779.03,0.00020547,2]
[361783008,1747776640185,-12640.66806714,0.00020624,3]
[361783009,1747776640194,-160.0,0.00020624,3]
[361783010,1747776640204,-5033.35766472,0.00020659,3]
[361783011,1747776640213,-528.754,0.00020725,2]
[361783012,1747776640223,-845.26,0.00020821,2]
[361783013,1747776640232,-1270.68,0.00020821,2]
[361783014,1747776640242,-2639.7,0.00020821,2]
[361783015,1747776640251,-611.58,0.00020821,2]
[361783016,1747776640260,-444.59,0.00020821,2]
[361783017,1747776640270,-661.79,0.00020821,2]
[361783018,1747776640280,-430.0,0.00020821,2]
[361783019,1747776640290,-430.0,0.00020821,2]
[361783020,1747776640299,-836.48,0.00020821,2]
[361783021,1747776640309,-442.6,0.00020821,2]
[361783022,1747776640319,-1901.72,0.00020821,2]
[361783023,1747776640329,-1593.13,0.00020821,2]
[361783025,1747776640339,-756.07,0.00020821,2]
[361783027,1747776640348,-486.77,0.00020821,2]
[361783029,1747776640357,-430.0,0.00020821,2]
[361783031,1747776640367,-430.0,0.00020821,2]
[361783033,1747776640377,-779.03,0.00020821,2]
[361783035,1747776640387,-500.0,0.00020892,2]
[361783036,1747776640397,-5033.35766472,0.00020934,4]
[361783037,1747776640407,-845.26,0.00021095,2]
[361783038,1747776640416,-1270.68,0.00021095,2]
[361783039,1747776640427,-2639.7,0.00021095,2]
[361783040,1747776640437,-611.58,0.00021095,2]
[361783041,1747776640447,-444.59,0.00021095,2]
[361783042,1747776640458,-661.79,0.00021095,2]
[361783043,1747776640467,-430.0,0.00021095,2]
[361783044,1747776640477,-430.0,0.00021095,2]
[361783045,1747776640487,-836.48,0.00021095,2]
[361783046,1747776640497,-442.6,0.00021095,2]
[361783047,1747776640508,-1901.72,0.00021095,2]
[361783048,1747776640518,-1593.13,0.00021095,2]
[361783049,1747776640527,-756.07,0.00021095,2]
[361783050,1747776640537,-486.77,0.00021095,2]
[361783051,1747776640546,-430.0,0.00021095,2]
[361783052,1747776640556,-430.0,0.00021095,2]
[361783053,1747776640566,-779.03,0.00021095,2]
[361783054,1747776640575,-500.0,0.00021138,2]
[361783055,1747776640586,-5033.35766472,0.0002121,4]
[361783056,1747776640598,-500.0,0.00021225,2]
[361783057,1747776640608,-845.26,0.00021369,2]
[361783058,1747776640617,-1270.68,0.00021369,2]
[361783059,1747776640628,-2639.7,0.00021369,2]
[361783060,1747776640639,-611.58,0.00021369,2]
[361783061,1747776640649,-444.59,0.00021369,2]
[361783062,1747776640659,-661.79,0.00021369,2]
[361783063,1747776640668,-430.0,0.00021369,2]
[361783064,1747776640680,-430.0,0.00021369,2]
[361783065,1747776640689,-836.48,0.00021369,2]
[361783066,1747776640698,-442.6,0.00021369,2]
[361783067,1747776640708,-1901.72,0.00021369,2]
[361783068,1747776640718,-1593.13,0.00021369,2]
[361783069,1747776640728,-756.07,0.00021369,2]
[361783070,1747776640737,-486.77,0.00021369,2]
[361783071,1747776640747,-430.0,0.00021369,2]
[361783072,1747776640756,-452.90933943,0.00021369,2]
[361783073,1747776640766,-779.03,0.00021369,2]
[361783074,1747776640775,-523.0,0.00021454,2]
[361783075,1747776640784,-5033.35766472,0.00021486,5]
[361783076,1747776640794,-215.0738,0.00021511,2]
[361783077,1747776640803,-151.0,0.00021511,2]
[361783078,1747776640813,-845.26,0.00021643,2]
[361783079,1747776640823,-1270.68,0.00021643,2]
[361783080,1747776640832,-2639.7,0.00021643,2]
[361783081,1747776640842,-611.58,0.00021643,2]
[361783082,1747776640851,-444.59,0.00021643,2]
[361783083,1747776640860,-661.79,0.00021643,2]
[361783084,1747776640870,-430.0,0.00021643,2]
[361783085,1747776640879,-430.0,0.00021643,2]
[361783086,1747776640889,-836.48,0.00021643,2]
[361783087,1747776640898,-442.6,0.00021643,2]
[361783088,1747776640908,-1901.72,0.00021643,2]
[361783089,1747776640917,-1593.13,0.00021643,2]
[361783090,1747776640929,-756.07,0.00021643,2]
[361783091,1747776640938,-486.77,0.00021643,2]
[361783092,1747776640948,-430.0,0.00021643,2]
[361783093,1747776640957,-779.03,0.00021643,2]
[361783094,1747776640967,-1000.0,0.00021686,2]
[361783095,1747776640977,-5033.35766472,0.00021762,5]
[361783096,1747776640986,-845.26,0.00021917,2]
[361783097,1747776640996,-3107.77,0.00021917,2]
[361783098,1747776641006,-1270.68,0.00021917,2]
[361783099,1747776641015,-2639.7,0.00021917,2]
[361783100,1747776641024,-611.58,0.00021917,2]
[361783101,1747776641034,-444.59,0.00021917,2]
[361783102,1747776641043,-661.79,0.00021917,2]
[361783103,1747776641052,-314.93427741,0.00021917,2]
[361783104,1747776641062,-308.61767431,0.00021917,2]
[361783105,1747776641072,-836.48,0.00021917,2]
[361783106,1747776641081,-442.6,0.00021917,2]
[361783107,1747776641091,-1901.72,0.00021917,2]
[361783108,1747776641100,-1593.13,0.00021917,2]
[361783109,1747776641109,-756.07,0.00021917,2]
[361783110,1747776641119,-486.77,0.00021917,2]
[361783111,1747776641129,-430.0,0.00021917,2]
[361783112,1747776641139,-779.03,0.00021917,2]
[361783113,1747776641148,-500.0,0.00021937,2]
[361783114,1747776641158,-5033.35766472,0.00022038,6]
[361783115,1747776641167,-845.26,0.00022191,2]
[361783116,1747776641179,-1270.68,0.00022191,2]
[361783117,1747776641188,-2639.7,0.00022191,2]
[361783118,1747776641197,-611.58,0.00022191,2]
[361783119,1747776641207,-444.59,0.00022191,2]
[361783120,1747776641217,-661.79,0.00022191,2]
[361783121,1747776641226,-836.48,0.00022191,2]
[361783122,1747776641236,-442.6,0.00022191,2]
[361783123,1747776641245,-1901.72,0.00022191,2]
[361783124,1747776641254,-1593.13,0.00022191,2]
[361783125,1747776641264,-756.07,0.00022191,2]
[361783126,1747776641273,-486.77,0.00022191,2]
[361783127,1747776641283,-430.0,0.00022191,2]
[361783128,1747776641293,-779.03,0.00022191,2]
[361783129,1747776641302,-5033.35766472,0.00022314,7]
[361783130,1747776641311,-546.0,0.00022377,2]
[361783131,1747776641321,-2235.0,0.00022377,2]
[361783132,1747776641330,-845.26,0.00022465,2]